bitfinex/quotes_ETHUSD_20251215
["timestamp","ask_amount","ask_price","bid_price","bid_amount"]
[1765813321622,0.001,3000.8,3000.3,0.98597929]
[1765813321822,0.001,3000.8,3000.7,7.63625913]
[1765813322050,0.001,3000.8,3000.3,0.405504]
[1765813322250,0.001,3000.8,3000.5,0.58047529]
[1765813322460,0.001,3000.8,2998.6,3.33485321]
[1765813322659,2.821909,3000.7,2998.2,3.33527806]
[1765813322966,2.86602429,3000.7,2999.0,3.33440791]
[1765813323151,0.58047529,3000.5,2998.9,3.33450336]
[1765813323460,0.549,3000.4,2999.3,3.33410209]
[1765813323625,0.549,3000.4,2998.3,7.05578384]
[1765813323823,0.4513,3000.6,2998.3,7.05578384]
[1765813323824,0.4513,3000.6,2999.4,3.3339981]
[1765813324025,0.03987572,3000.4,2999.4,3.33397381]
[1765813324273,0.03987572,3000.4,2999.1,0.58047529]
[1765813324558,0.001,3000.8,2999.2,0.58234222]
[1765813324775,0.001,3000.8,2999.7,0.405504]
[1765813324953,0.001,3000.8,2999.8,0.549]
[1765813325127,0.001,3000.8,3000.2,0.98597929]
[1765813325328,0.001,3000.8,3000.3,0.80417631]
[1765813325529,0.001,3000.8,3000.4,0.405504]
[1765813325774,0.001,3000.8,3000.7,7.63625913]
[1765813325972,0.001,3000.9,3000.8,30.63903329]
[1765813326125,1e-08,3001.3,3000.8,33.50711133]
[1765813326331,0.21224679,3004.2,3001.5,0.98597929]
[1765813326566,0.03987572,3004.2,3001.9,7.46128784]
[1765813326781,3.36839062,3004.4,3002.1,0.405504]
[1765813326782,0.03987572,3004.4,3002.1,0.405504]
[1765813326934,0.1805,3005.2,3003.1,4.856595]
[1765813327129,3.50729064,3005.9,3003.3,8.156248]
[1765813327328,3.2119,3005.8,3004.0,0.58047529]
[1765813327528,3.608029,3005.7,3003.5,0.405504]
[1765813327731,3.608029,3005.7,3002.4,6.298383]
[1765813327732,0.03987572,3004.7,3002.4,6.298383]
[1765813328031,0.03987572,3004.7,3002.4,0.405504]
[1765813328032,0.03987572,3004.2,3002.4,0.405504]
[1765813328375,0.03987572,3004.9,3002.3,1.12947529]
[1765813328376,0.49117572,3005.5,3002.9,0.98597929]
[1765813328531,0.03987572,3005.5,3003.7,0.405504]
[1765813328729,3.32743329,3005.4,3003.7,0.954504]
[1765813328947,3.36733232,3005.3,3003.7,0.954504]
[1765813329151,0.03987572,3005.3,3003.7,0.954504]
[1765813329364,3.36757757,3005.1,3003.5,0.58047529]
[1765813329566,0.4513,3005.0,3003.2,0.405504]
[1765813329775,0.4513,3005.0,3003.0,0.80417631]
[1765813329776,0.4513,3005.0,3003.1,0.405504]
[1765813330152,1.03177529,3005.0,3003.1,0.405504]
[1765813330306,0.03987572,3005.1,3003.6,0.405504]
[1765813330457,3.367552,3005.1,3003.5,0.58047529]
[1765813330662,3.367552,3005.1,3003.5,1.3990012]
[1765813330857,0.03987572,3004.6,3003.3,0.58047529]
[1765813331089,0.549,3004.8,3003.3,0.58047529]
[1765813331296,3.32738657,3005.4,3003.4,0.405504]
[1765813331499,0.03987572,3005.3,3003.4,0.405504]
[1765813331660,0.4513,3005.2,3003.3,0.98597929]
[1765813331868,0.03987572,3005.3,3003.7,0.98597929]
[1765813332259,3.36736634,3005.3,3003.9,0.58047529]
[1765813332461,0.549,3005.4,3003.9,0.58047529]
[1765813332686,0.001,3005.0,3003.9,0.58047529]
[1765813332892,0.001,3005.0,3003.9,1.73270815]
[1765813333598,0.001,3005.0,3003.9,1.8245601]
[1765813333766,0.001,3005.0,3004.3,0.98597929]
[1765813333965,0.001,3005.0,3003.9,2.40503539]
[1765813334188,0.001,3005.0,3004.2,0.58047529]
[1765813334703,0.001,3005.0,3004.5,0.98597929]
[1765813334866,0.001,3005.0,3004.7,0.405504]
[1765813335201,0.001,3005.0,3004.8,0.405504]
[1765813335361,0.001,3005.0,3004.9,0.98597929]
[1765813336009,0.001,3006.3,3005.2,0.98597929]
[1765813336162,0.001,3006.3,3005.9,6.65358128]
[1765813336894,0.001,3006.3,3005.2,10.38324385]
[1765813337061,0.001,3006.3,3005.0,3.3276991]
[1765813337267,0.001,3006.3,3005.3,3.32745274]
[1765813337463,0.4513,3006.2,3004.8,3.32799882]
[1765813337669,0.405504,3006.1,3004.0,7.05578384]
[1765813337899,0.405504,3006.1,3004.0,7.60378384]
[1765813338063,0.405504,3005.9,3003.7,0.548]
[1765813338259,0.58047529,3005.7,3003.8,6.6582329]
[1765813338464,0.58047529,3005.7,3003.3,3.32964948]
[1765813338465,0.405504,3005.4,3003.3,3.32964948]
[1765813338694,0.405504,3005.0,3002.9,7.05578384]
[1765813338879,0.548,3004.9,3003.6,3.32926916]
[1765813339081,0.548,3004.9,3003.4,3.32948691]
[1765813339293,0.4513,3004.8,3003.3,3.32964374]
[1765813339501,0.4513,3004.8,3003.1,3.32988492]
[1765813339672,0.03987572,3004.3,3003.2,3.32975972]
[1765813339874,0.405504,3004.2,3002.7,3.3303326]
[1765813340073,0.58047529,3004.0,3002.4,0.02]
[1765813340398,0.405504,3003.8,3002.4,3.35064488]
[1765813340602,0.548,3003.7,3002.4,3.99878727]
[1765813340804,1.03917572,3003.7,3001.7,0.65909171]
[1765813340968,1.03917572,3003.7,3002.4,6.66131951]
[1765813341327,1.03917572,3003.7,3001.4,3.33169507]
[1765813341328,0.98597929,3003.1,3001.4,3.33169507]
[1765813341618,0.98597929,3003.1,2999.3,0.03987572]
[1765813341619,17.597089,3003.0,3000.6,0.65206666]
[1765813341780,0.405504,3002.6,3000.3,7.05578384]
[1765813342103,0.405504,3002.9,3001.7,3.33136522]
[1765813342104,0.4513,3002.9,3001.7,3.33136522]
[1765813342305,0.548,3002.8,3001.8,0.61378863]
[1765813342508,0.548,3002.8,3001.8,0.58047529]
[1765813342669,0.1805,3003.4,3001.8,0.58047529]
[1765813342869,0.548,3003.3,3001.9,0.405504]
[1765813343102,0.58047529,3003.6,3001.9,0.405504]
[1765813343271,3.32902767,3003.9,3002.4,0.58047529]
[1765813343484,0.1805,3004.1,3002.5,0.76362591]
[1765813343806,13.26588329,3004.0,3001.7,10.66074688]
[1765813343982,0.405504,3003.9,3001.8,0.98597929]
[1765813344182,1.03177529,3004.0,3001.8,0.98597929]
[1765813344183,0.548,3003.8,3002.5,9.99167358]
[1765813344393,0.03987572,3005.0,3003.0,0.98597929]
[1765813344600,0.548,3004.2,3003.1,0.80417631]
[1765813345005,0.548,3004.2,3003.1,0.80497631]
[1765813345216,0.548,3004.1,3003.1,0.80497631]
[1765813345709,0.548,3004.1,3002.6,0.58047529]
[1765813345880,0.22037572,3004.2,3002.6,0.58047529]
[1765813346078,0.548,3004.1,3002.7,0.406304]
[1765813346303,0.03987572,3004.8,3002.9,0.98597929]
[1765813346508,0.03987572,3004.8,3003.0,1.09766547]
[1765813346509,0.548,3004.1,3003.0,1.09766547]
[1765813346925,0.9993,3004.1,3002.7,3.33031634]
[1765813347129,0.58047529,3003.9,3002.2,0.0008]
[1765813347336,0.03987572,3004.4,3002.8,0.58047529]
[1765813347496,10.38282699,3005.7,3003.4,0.405504]
[1765813347497,3.32763556,3005.2,3003.4,0.405504]
[1765813347678,0.548,3005.1,3003.4,1.01927488]
[1765813347883,0.548,3005.1,3003.5,0.0008]
[1765813348317,0.001,3004.1,3002.9,2.09655147]
[1765813348489,0.548,3004.0,3002.7,0.405504]
[1765813348819,0.001,3004.1,3002.9,0.0008]
[1765813349020,0.001,3004.1,3002.5,0.405504]
[1765813349021,0.549,3004.1,3002.5,0.0008]
[1765813349184,0.001,3004.1,3002.7,0.58047529]
[1765813349385,0.548,3004.0,3003.4,3.32955983]
[1765813349693,0.548,3004.0,3003.1,3.32989003]
[1765813349889,0.548,3004.0,3003.2,3.32971648]
[1765813350118,0.548,3004.0,3002.6,3.73670313]
[1765813350119,0.548,3004.0,3002.6,0.406304]
[1765813350316,0.548,3004.0,3001.9,0.0008]
[1765813350317,0.03987572,3003.8,3001.9,0.0008]
[1765813350526,0.03987572,3003.8,3002.3,3.3307551]
[1765813350527,0.405504,3003.7,3002.3,3.3307551]
[1765813350686,0.548,3003.6,3002.3,3.3307551]
[1765813350881,0.4898,3003.7,3002.3,6.66153483]
[1765813351226,0.196,3003.5,3002.3,9.99231456]
[1765813351548,0.548,3003.5,3002.4,0.58127529]
[1765813351684,0.58047529,3003.9,3002.6,0.405504]
[1765813351883,0.548,3003.8,3002.6,0.405504]
[1765813352116,0.548,3003.8,3002.7,0.0008]
[1765813352282,0.001,3004.1,3002.8,0.98597929]
[1765813352488,0.548,3004.0,3003.0,0.405504]
[1765813352700,0.001,3004.1,3003.0,0.405504]
[1765813352904,0.001,3004.1,3003.6,0.98597929]
[1765813353091,0.001,3004.1,3003.7,0.0008]
[1765813353298,0.001,3004.1,3002.9,1.43081234]
[1765813353496,0.001,3004.1,3003.1,0.0008]
[1765813354229,0.001,3004.1,3002.9,1.43081234]
[1765813354398,0.001,3004.1,3003.0,6.66000666]
[1765813354609,0.001,3004.1,3002.4,3.33060666]
[1765813354610,0.4731,3004.0,3002.2,3.33081876]
[1765813354801,0.4731,3004.0,3002.3,1.07196805]
[1765813355014,0.4731,3004.0,3002.3,0.0008]
[1765813355228,0.405504,3003.9,3002.0,7.02815153]
[1765813355537,0.405504,3003.9,3001.8,0.0008]
[1765813355538,0.58047529,3003.7,3001.9,0.35246077]
[1765813355759,0.405504,3003.7,3001.9,0.35246077]
[1765813356032,1.0211,3003.8,3001.5,0.002]
[1765813356033,0.98597929,3003.3,3001.5,0.002]
[1765813356207,6.65889794,3003.5,3001.6,0.0008]
[1765813356408,0.03987572,3003.8,3002.1,0.58047529]
[1765813356637,0.58047529,3003.6,3002.2,0.405504]
[1765813356840,0.1933,3004.0,3002.2,0.406304]
[1765813356999,0.548,3003.9,3002.3,0.0008]
[1765813357335,1.0211,3003.9,3002.3,0.0008]
[1765813357545,0.4731,3003.9,3002.3,0.0008]
[1765813357716,0.001,3004.1,3002.6,7.02815153]
[1765813358034,0.001,3004.1,3002.7,1.78819237]
[1765813358035,0.548,3004.0,3002.7,1.78819237]
[1765813358399,0.001,3004.1,3002.9,0.405504]
[1765813358901,0.001,3004.1,3003.0,0.0008]
[1765813359522,3.80288399,3004.1,3002.9,0.58047529]
[1765813359923,0.548,3004.0,3002.9,0.58047529]
[1765813360125,7.13168645,3004.1,3003.0,1.05711507]
[1765813360336,3.87703771,3003.9,3002.6,1.23084179]
[1765813360537,0.58047529,3003.8,3002.6,0.6503665]
[1765813360851,0.405504,3003.5,3001.9,3.33117682]
[1765813361155,0.405504,3003.5,3001.7,3.3314272]
[1765813361156,0.405504,3003.2,3001.5,0.002]
[1765813361322,0.405504,3002.9,3001.5,0.002]
[1765813361643,0.405504,3002.7,3001.5,0.002]
[1765813361947,0.405504,3002.5,3001.5,0.002]
[1765813362125,0.405504,3002.3,3001.5,0.002]
[1765813362312,3.5248565,3001.6,3001.5,0.002]
[1765813362511,4.10533179,3001.6,3001.5,0.002]
[1765813362740,5.12643179,3001.6,3001.5,0.002]
[1765813363055,5.53193579,3001.6,3001.5,0.002]
[1765813363258,0.58047529,3001.5,2999.7,0.67406884]
[1765813363410,0.548,3001.4,2999.4,5.85829575]
[1765813363720,0.548,3001.4,2999.5,0.58047529]
[1765813364049,1.0211,3001.4,2999.5,0.58047529]
[1765813364346,0.58047529,3001.1,2999.5,6.66777796]
[1765813364652,0.405504,3001.0,2999.5,6.66777796]
[1765813364946,0.548,3000.9,2999.5,10.00166694]
[1765813365114,0.4731,3000.8,2999.6,0.58047529]
[1765813365323,0.4731,3000.8,2999.5,6.66777796]
[1765813365524,0.4731,3000.8,2999.3,0.1568]
[1765813365525,0.410914,3000.8,2999.3,0.1568]
[1765813365863,0.405504,3000.6,2999.4,3.33400013]
[1765813366220,0.548,3000.5,2999.4,6.66800026]
[1765813366427,0.548,3000.4,2999.3,0.1568]
[1765813366620,0.62035101,3000.9,2999.3,0.4544]
[1765813366828,0.548,3000.8,2999.5,6.66775554]
[1765813367231,0.548,3000.8,2999.0,0.002]
[1765813367432,0.4723,3000.7,2999.5,6.66776779]
[1765813367622,0.548,3000.6,2999.5,3.33387881]
[1765813368351,0.98597929,3000.4,2999.1,0.58047529]
[1765813368555,0.549,3000.3,2999.1,0.58047529]
[1765813369155,0.58047529,3000.4,2999.1,0.58047529]
[1765813369692,1.0221,3000.3,3000.1,0.002]
[1765813370361,4.39497575,3000.3,3000.1,0.002]
[1765813370786,3.33292638,3000.4,3000.1,0.002]
[1765813370992,0.549,3000.3,3000.1,0.002]
[1765813371690,0.03987572,3000.5,3000.1,0.002]
[1765813371989,0.549,3000.4,3000.1,0.002]
[1765813372204,3.37207793,3001.1,3000.1,0.002]
[1765813372205,0.03987572,3001.1,3000.1,0.002]
[1765813372492,0.03987572,3001.3,3000.3,6.66600006]
[1765813372699,1.0221,3001.2,3000.1,0.002]
[1765813372857,0.51297572,3001.1,3000.1,0.002]
[1765813373169,0.549,3001.0,3000.2,3.33509578]
[1765813373374,6.70368835,3001.3,3000.2,3.33509578]
[1765813373375,3.37176523,3001.3,3000.2,6.6682069]
[1765813373554,1.0221,3001.2,3000.2,0.002]
[1765813373758,0.4731,3001.2,3000.2,6.66822055]
[1765813373999,0.549,3001.5,3000.3,1.12142206]
[1765813374191,1.0221,3001.5,3000.3,1.24749735]
[1765813374390,0.549,3001.5,3000.4,9.99866682]
[1765813374564,3.88068236,3001.5,3000.4,10.45306682]
[1765813374768,0.549,3001.5,3000.5,1.56640889]
[1765813375484,7.21233954,3001.5,3000.5,1.11200889]
[1765813375684,0.4731,3001.4,3000.4,6.66577788]
[1765813375919,0.549,3001.5,3000.4,6.66577788]
[1765813376085,7.21236124,3001.5,3000.4,6.66577788]
[1765813376286,0.4731,3001.4,3000.3,6.66596089]
[1765813376508,6.66377902,3001.3,3000.2,0.002]
[1765813376836,6.66377902,3001.3,3000.5,0.002]
[1765813376837,0.62035101,3001.2,3000.5,0.002]
[1765813376979,0.58047529,3001.0,3000.5,0.002]
[1765813377179,0.405504,3001.1,3000.5,0.002]
[1765813377180,0.1933,3000.6,3000.5,0.002]
[1765813377452,0.1933,3001.1,3000.5,0.002]
[1765813377590,0.4731,3001.5,3000.5,0.002]
[1765813377916,0.03987572,3002.3,3000.6,0.48772666]
[1765813377917,0.51297572,3002.3,3000.6,0.48772666]
[1765813378116,6.66126697,3002.5,3000.9,0.98597929]
[1765813378317,3.87963179,3002.5,3001.0,0.54022933]
[1765813378495,3.87960164,3002.5,3001.1,9.99633465]
[1765813378697,7.21020328,3002.5,3001.1,9.99633465]
[1765813378898,0.549,3002.5,3001.2,1.44037929]
[1765813379393,0.1933,3002.9,3001.5,0.58047529]
[1765813379719,3.5234384,3002.9,3001.6,0.6435971]
[1765813379919,3.5234384,3002.9,3001.6,1.0979971]
[1765813380121,3.5234384,3002.9,3001.6,0.6435971]
[1765813380336,0.549,3003.0,3001.9,5.85549575]
[1765813380628,0.1933,3003.9,3002.3,0.58047529]
[1765813380793,0.001,3004.1,3002.8,0.58047529]
[1765813380994,3.32983393,3004.1,3002.8,0.58047529]
[1765813381318,0.001,3004.1,3003.2,5.85549575]
[1765813381519,0.001,3004.1,3002.4,1.1925971]
[1765813381520,0.001,3004.1,3003.3,6.46709575]
[1765813381693,7.2076048,3004.1,3002.9,0.4713]
[1765813381898,7.2076048,3004.1,3002.2,6.01269575]
[1765813381899,4.0498,3003.7,3002.2,0.1572]
[1765813382094,0.549,3003.6,3002.3,0.03330779]
[1765813382308,0.549,3003.6,3002.2,0.6285]
[1765813382608,3.32955983,3003.4,3002.2,6.81894714]
[1765813382815,0.58047529,3003.4,3002.3,0.68189471]
[1765813383019,0.1842,3003.5,3002.3,0.58047529]
[1765813383217,0.549,3003.6,3002.6,5.85549575]
[1765813383418,0.549,3003.6,3002.4,1.0203]
[1765813383419,0.001,3004.1,3003.1,5.85549575]
[1765813383739,0.001,3004.1,3004.0,0.1572]
[1765813384239,0.001,3004.1,3003.6,0.1572]
[1765813384640,0.001,3004.1,3002.2,0.1572]
[1765813384641,7.384216,3004.0,3002.2,0.1572]
[1765813384809,0.405504,3003.9,3002.3,7.13285946]
[1765813385010,0.4682,3003.9,3002.3,7.13285946]
[1765813385240,0.548,3003.8,3002.3,7.13285946]
[1765813385607,0.548,3003.8,3002.5,5.85549575]
[1765813385608,0.001,3003.4,3002.5,5.85549575]
[1765813385808,0.001,3003.4,3002.6,0.6435971]
[1765813386037,0.001,3003.4,3003.0,0.58047529]
[1765813386344,0.001,3004.1,3003.1,0.876804]
[1765813386535,0.001,3004.1,3004.0,0.1562]
[1765813387248,0.001,3004.1,3003.7,0.1562]
[1765813387750,0.001,3004.1,3003.2,0.58047529]
[1765813387948,0.001,3004.1,3003.3,0.1562]
[1765813388115,0.001,3004.1,3002.6,5.85549575]
[1765813388116,0.1842,3003.2,3002.3,0.548]
[1765813388316,0.58047529,3003.0,3001.1,9.65786041]
[1765813388541,0.58047529,3003.0,3001.4,0.58047529]
[1765813388542,0.58047529,3002.9,3001.4,0.58047529]
[1765813388816,0.548,3002.9,3001.6,5.85549575]
[1765813389014,0.548,3002.9,3001.3,6.66374841]
[1765813389015,1.0162,3002.9,3001.3,6.66374841]
[1765813389210,1.0162,3002.9,3001.4,1.05077529]
[1765813389529,0.548,3002.9,3001.7,0.58047529]
[1765813389840,0.548,3002.9,3002.1,5.85549575]
[1765813390150,0.548,3002.9,3001.5,2.01830556]
[1765813390383,0.548,3002.9,3001.6,0.4703]
[1765813390565,3.32944897,3003.5,3001.8,6.43597104]
[1765813390765,1.12767529,3003.5,3001.9,2.99447531]
[1765813391081,0.50807572,3003.4,3001.9,2.44647531]
[1765813391681,0.50807572,3003.4,3001.9,1.97617531]
[1765813391842,0.50807572,3003.4,3001.9,2.44647531]
[1765813392042,0.50807572,3003.4,3002.0,0.4703]
[1765813392346,0.548,3003.6,3002.4,0.58047529]
[1765813392649,0.548,3003.6,3002.6,9.99134082]
[1765813392650,5.0,3003.4,3002.6,9.99134082]
[1765813392850,5.0,3003.4,3002.8,5.85549575]
[1765813393074,5.0,3003.4,3003.3,0.1572]
[1765813394094,5.0,3003.4,3002.6,10.53934082]
[1765813394095,0.001,3002.9,3002.7,0.1572]
[1765813394376,0.001,3002.9,3002.7,0.50596469]
[1765813394576,0.001,3002.9,3002.8,3.33022512]
[1765813394764,0.001,3002.9,3002.8,9.65602087]
[1765813395144,0.001,3002.9,3002.8,3.80052512]
[1765813395366,0.001,3002.9,3002.8,3.33022512]
[1765813396384,0.001,3002.9,3002.8,4.75151314]
[1765813397175,0.001,3002.9,3002.8,5.15701714]
[1765813397391,0.001,3002.9,3002.8,16.00851639]
[1765813397684,0.001,3002.9,3002.8,5.15701714]
[1765813398092,0.001,3002.9,3002.8,5.70501714]
[1765813398710,0.001,3002.9,3002.8,11.56051289]
[1765813399371,5.0,3003.4,3002.8,30.51710189]
[1765813399688,0.001,3004.1,3003.4,0.405504]
[1765813399898,0.001,3004.1,3003.3,0.58047529]
[1765813400207,0.001,3004.1,3003.0,1.12847529]
[1765813400364,0.001,3004.1,3003.0,0.58047529]
[1765813400570,0.001,3004.1,3003.3,0.58047529]
[1765813400788,0.001,3004.1,3003.4,1.38996015]
[1765813401177,0.001,3004.1,3003.5,0.50359448]
[1765813401376,0.001,3004.1,3003.5,0.4703]
[1765813401879,0.001,3004.1,3003.4,1.38996015]
[1765813402066,0.001,3004.1,3003.3,0.58047529]
[1765813402701,0.001,3004.1,3003.4,6.65911966]
[1765813402910,0.001,3004.1,3003.5,0.58047529]
[1765813403114,0.001,3004.1,3003.6,0.4703]
[1765813403413,0.1842,3004.0,3003.4,3.32955983]
[1765813403614,0.001,3004.1,3003.4,6.65911966]
[1765813403909,0.001,3004.1,3003.4,10.70162146]
[1765813404079,0.001,3004.1,3003.5,1.05077529]
[1765813404469,0.001,3004.1,3003.6,0.4703]
[1765813404669,0.001,3004.1,3003.7,9.98768184]
[1765813404892,0.001,3004.1,3003.8,0.58047529]
[1765813405099,0.001,3004.1,3003.9,1.05681571]
[1765813405522,0.001,3004.1,3003.9,1.52711571]
[1765813405918,0.001,3004.1,3004.0,0.4703]
[1765813406430,0.001,3004.1,3003.9,1.05681571]
[1765813406598,0.001,3004.1,3004.0,3.7991948]
[1765813406798,0.001,3004.1,3004.0,3.3288948]
[1765813407104,0.001,3004.1,3003.4,0.71294197]
[1765813407432,0.001,3004.1,3003.6,3.32930056]
[1765813407608,0.001,3004.1,3003.7,3.32919858]
[1765813408130,0.001,3004.1,3003.9,3.32896144]
[1765813408332,0.001,3004.1,3003.8,3.32910778]
[1765813408504,0.001,3004.1,3003.2,6.65956312]
[1765813408900,0.001,3004.1,3003.1,3.32984655]
[1765813408901,0.03987572,3004.0,3003.1,3.32984655]
[1765813409146,0.548,3003.9,3003.1,3.32984655]
[1765813409329,0.7322,3003.9,3003.1,6.65973899]
[1765813409640,1.2004,3003.9,3003.1,6.65973899]
[1765813409848,1.2004,3003.9,3003.1,3.32984655]
[1765813410356,0.53957572,3003.8,3002.8,3.3321957]
[1765813410648,0.001,3004.1,3002.9,7.21386694]
[1765813410817,0.001,3004.1,3003.0,0.58047529]
[1765813411017,0.001,3004.1,3003.3,6.74356694]
[1765813411228,0.001,3004.1,3003.0,0.4703]
[1765813411229,0.001,3004.1,3003.1,0.1562]
[1765813411423,7.15830616,3004.1,3003.1,0.1562]
[1765813411623,0.001,3004.1,3003.1,0.1562]
[1765813411824,0.001,3004.1,3003.1,0.95145422]
[1765813412244,3.32981499,3004.1,3003.1,0.95145422]
[1765813412558,0.001,3004.1,3003.2,6.65956312]
[1765813412880,0.001,3004.1,3003.4,6.74356694]
[1765813413216,0.001,3004.1,3003.5,1.05077529]
[1765813413418,0.001,3004.1,3004.0,6.74356694]
[1765813413648,0.001,3004.1,3004.0,7.21386694]
[1765813414058,0.001,3004.2,3004.0,8.19984623]
[1765813414213,0.001,3004.7,3004.1,1.20757529]
[1765813414419,0.001,3004.7,3004.2,1.37558951]
[1765813414640,0.001,3004.7,3004.6,10.07179698]
[1765813415026,0.001,3004.7,3004.6,10.54209698]
[1765813415219,0.001,3004.7,3004.6,11.12257227]
[1765813415414,0.001,3004.7,3004.6,10.63110406]
[1765813415634,0.001,3004.7,3004.6,12.0270487]
[1765813416683,0.001,3004.7,3004.2,0.79511422]
[1765813416842,0.001,3004.7,3004.1,0.1568]
[1765813417043,0.001,3004.7,3004.6,3.32823004]
[1765813417653,0.001,3004.7,3004.1,0.1568]
[1765813417835,0.4569,3004.7,3003.2,0.4703]
[1765813418154,0.4569,3004.7,3003.8,3.32908728]
[1765813418155,0.58787572,3004.6,3003.8,3.32908728]
[1765813418356,0.58787572,3004.6,3003.6,3.32929195]
[1765813418680,0.58787572,3004.6,3003.0,0.002]
[1765813418681,0.98597929,3004.3,3003.0,0.002]
[1765813418878,0.98597929,3004.1,3003.0,0.002]
[1765813419054,0.548,3004.0,3003.1,0.1562]
[1765813419246,0.548,3004.0,3003.0,0.002]
[1765813419452,0.4559,3003.9,3003.0,0.002]
[1765813420177,0.548,3003.8,3003.0,0.002]
[1765813420680,6.65867624,3003.6,3003.0,0.002]
[1765813420838,6.65867624,3003.6,3003.4,0.002]
[1765813421041,0.4559,3003.5,3003.4,0.002]
[1765813421442,1.0039,3003.5,3003.4,0.002]
[1765813421943,0.4559,3003.5,3003.4,0.002]
[1765813422143,1.04377572,3003.5,3003.4,0.002]
[1765813422780,4.37322469,3003.5,3003.4,0.002]
[1765813423452,0.49577572,3003.5,3003.4,0.002]
[1765813423639,1.04377572,3003.5,3003.4,0.002]
[1765813423839,0.03987572,3003.7,3003.4,0.002]
[1765813424038,0.03987572,3003.9,3003.4,0.002]
[1765813424273,0.548,3003.6,3003.4,0.002]
[1765813424481,0.03987572,3003.9,3003.4,0.002]
[1765813424683,0.548,3003.5,3003.4,0.002]
[1765813424970,0.03987572,3003.7,3003.4,0.002]
[1765813424971,3.3293402,3003.6,3003.4,0.002]
[1765813425286,0.548,3003.5,3003.4,0.002]
[1765813425974,0.49577572,3004.6,3003.4,0.002]
[1765813426186,0.001,3004.7,3003.4,0.4723]
[1765813426356,0.548,3004.6,3003.4,0.4723]
[1765813426695,0.548,3004.5,3003.4,0.4723]
[1765813426900,0.001,3004.7,3003.5,9.98834691]
[1765813427054,0.001,3004.7,3003.6,1.95949329]
[1765813427378,0.548,3004.6,3003.7,0.4703]
[1765813427804,0.001,3004.7,3003.7,0.4703]
[1765813427805,0.001,3004.7,3004.5,0.1565]
[1765813428277,0.001,3004.7,3004.5,0.6268]
[1765813428669,0.001,3004.7,3004.6,0.4703]
[1765813428986,0.001,3004.7,3004.6,3.79853004]
[1765813429167,0.001,3004.7,3004.6,4.52686739]
[1765813429553,0.001,3004.7,3004.6,5.10734268]
[1765813430077,0.001,3004.7,3004.6,4.63704268]
[1765813430585,0.001,3004.7,3004.6,5.10734268]
[1765813432481,0.001,3004.7,3004.6,9.83163365]
[1765813432691,0.001,3004.7,3004.6,5.51284668]
[1765813433062,0.001,3004.7,3004.6,13.19746098]
[1765813433383,0.001,3004.7,3004.6,32.62850568]
[1765813433584,0.001,3004.7,3004.6,13.89628468]
[1765813433788,0.001,3004.7,3004.6,12.49646468]
[1765813434268,0.001,3004.7,3004.6,6.06084668]
[1765813434988,0.001,3004.7,3004.6,9.56931168]
[1765813435587,0.001,3004.7,3004.6,8.03556768]
[1765813435907,0.001,3004.7,3004.6,5.10734268]
[1765813436195,0.001,3004.7,3004.6,5.51284668]
[1765813436395,0.001,3004.7,3004.6,4.52686739]
[1765813436762,0.001,3004.7,3004.6,5.10734268]
[1765813437584,0.0002,3004.7,3004.6,5.51284668]
[1765813437909,0.0002,3004.7,3004.6,3.79853004]
[1765813438574,0.0002,3004.7,3004.6,4.37900533]
[1765813438777,0.0002,3004.7,3004.6,3.32823004]
[1765813439310,0.0002,3004.7,3004.6,3.79853004]
[1765813439795,0.0002,3004.7,3004.6,4.37900533]
[1765813440000,0.0002,3004.7,3004.6,3.32823004]
[1765813440305,0.0002,3004.7,3004.6,3.90870533]
[1765813440458,0.0002,3004.7,3004.6,4.37900533]
[1765813440664,0.0002,3004.7,3004.6,4.41228763]
[1765813440859,0.0002,3004.7,3004.6,4.78450933]
[1765813441082,0.0002,3004.7,3004.6,5.19029034]
[1765813441286,0.0002,3004.7,3004.6,3.90870533]
[1765813441610,0.0002,3004.7,3004.6,4.37900533]
[1765813441761,0.001,3005.0,3004.7,0.98597929]
[1765813441956,0.001,3005.9,3005.2,0.405504]
[1765813442161,0.001,3005.9,3005.6,0.58047529]
[1765813442360,0.001,3005.9,3005.7,0.76296985]
[1765813442591,0.001,3005.9,3005.7,1.23126985]
[1765813442798,0.001,3005.9,3005.8,0.90707301]
[1765813442967,0.001,3005.9,3005.8,0.873804]
[1765813443168,0.001,3005.9,3005.8,5.45547872]
[1765813443402,0.001,3005.9,3005.8,6.41002467]
[1765813443573,0.548,3007.5,3006.0,0.405504]
[1765813443778,0.548,3007.5,3006.4,0.58047529]
[1765813444310,0.03987572,3007.9,3006.4,0.1559]
[1765813444463,0.1821,3006.5,3005.6,3.32707559]
[1765813444662,0.1821,3006.5,3005.8,3.32685007]
[1765813444972,0.1821,3006.5,3005.3,3.32742133]
[1765813444973,1.0448,3006.4,3005.5,3.32719681]
[1765813445176,1.0448,3006.4,3004.8,0.4683]
[1765813445177,0.405504,3006.2,3004.3,0.4683]
[1765813445363,0.98597929,3006.2,3004.8,3.32790448]
[1765813445570,0.405504,3006.0,3005.2,3.32756096]
[1765813445811,0.405504,3006.0,3004.9,3.32782605]
[1765813445967,0.4978,3005.9,3004.9,3.32789318]
[1765813446371,0.405504,3005.8,3004.6,3.32816871]
[1765813446699,0.547,3005.7,3004.7,3.32811083]
[1765813446875,0.03987572,3005.4,3004.8,3.32796831]
[1765813447073,0.1821,3004.9,3004.0,0.58047529]
[1765813447598,0.4978,3005.1,3003.9,6.65801124]
[1765813447599,0.547,3004.8,3004.2,0.1565]
[1765813447804,0.03987572,3005.4,3004.2,0.6248]
[1765813447974,3.54787572,3006.8,3004.4,0.405504]